bitfinex/quotes_ETHUSD_20240730
["timestamp","ask_amount","ask_price","bid_price","bid_amount"]
[1722379020240,1.98830902,3285.4,3285.3,3.652599]
[1722379021232,0.07300466,3285.4,3285.3,3.652599]
[1722379021437,1.91548285,3285.4,3285.3,3.652599]
[1722379021879,1.98845345,3285.4,3285.3,3.652599]
[1722379022456,0.0729706,3285.4,3285.3,3.652599]
[1722379022665,2.23473,3285.6,3285.2,3.04395]
[1722379022846,1.91574665,3285.3,3285.2,3.04395]
[1722379024680,1.91619821,3285.3,3285.2,3.04395]
[1722379024887,1.98915855,3285.3,3285.2,3.04395]
[1722379025190,0.07296034,3285.3,3285.2,6.696699]
[1722379025541,1.91619821,3285.4,3285.3,3.04386]
[1722379025737,0.0729947,3285.4,3285.3,8.40052]
[1722379026152,2.23556458,3285.9,3285.3,8.40052]
[1722379026153,1.91619821,3285.5,3285.4,3.04376]
[1722379026486,2.23556458,3285.7,3285.5,3.04367]
[1722379026897,2.23556458,3285.9,3285.7,3.04349]
[1722379027187,3.04299,3286.3,3285.9,3.0433]
[1722379027188,2.23556458,3286.0,3285.9,3.0433]
[1722379027561,2.23556458,3286.1,3285.9,3.0433]
[1722379027880,2.23624367,3286.1,3285.9,3.0433]
[1722379028208,2.23624367,3286.2,3286.0,3.04321]
[1722379028361,2.2362421,3286.2,3286.0,3.04321]
[1722379028545,2.2362421,3286.1,3285.8,3.04332]
[1722379028747,5.2793621,3286.1,3285.5,6.08721]
[1722379029056,1.91671159,3285.7,3285.5,3.04359]
[1722379029372,1.91671159,3285.7,3285.6,3.04358]
[1722379031189,1.91645536,3285.7,3285.6,3.04358]
[1722379031385,1.91645536,3285.7,3285.4,3.9446119]
[1722379031562,1.91639494,3285.6,3285.4,3.04369]
[1722379031762,1.91639494,3285.6,3285.5,3.04367]
[1722379032497,1.91639494,3285.7,3285.5,3.04367]
[1722379033300,1.91639494,3285.6,3285.3,3.0438]
[1722379033454,1.91613287,3285.4,3285.3,3.0438]
[1722379034002,3.04321,3286.1,3285.4,3.04376]
[1722379034003,1.91613287,3285.5,3285.4,3.04376]
[1722379034413,1.91613171,3285.5,3285.4,3.04376]
[1722379034581,1.91613171,3285.5,3285.4,3.59689251]
[1722379035591,1.91613171,3285.5,3285.4,6.64065251]
[1722379035903,1.91613171,3285.6,3285.5,3.04367]
[1722379036268,2.235487,3285.8,3285.5,3.04367]
[1722379036883,2.235487,3285.8,3285.5,3.04361]
[1722379037077,2.235487,3285.9,3285.6,3.347881]
[1722379037344,3.305487,3285.9,3285.6,3.04352]
[1722379037819,3.3057196,3285.9,3285.6,3.04352]
[1722379038197,3.3057196,3285.9,3285.7,3.04343]
[1722379039190,2.2357196,3285.8,3285.7,3.04343]
[1722379039985,2.2357196,3285.8,3285.5,5.4917]
[1722379040382,2.2357196,3285.8,3285.6,3.04356]
[1722379040982,2.23572741,3285.8,3285.6,3.04356]
[1722379041398,1.07,3285.9,3285.6,3.04356]
[1722379041600,2.23578395,3285.8,3285.6,3.04356]
[1722379043302,2.23534775,3285.8,3285.5,2.4481]
[1722379043502,2.23534775,3285.8,3285.4,3.04369]
[1722379043728,1.91603776,3285.5,3285.4,3.04369]
[1722379044102,0.07318499,3285.5,3285.4,3.04369]
[1722379044417,1.91607532,3285.5,3285.4,3.04369]
[1722379044735,1.98918001,3285.5,3285.4,3.04369]
[1722379044944,1.98910425,3285.5,3285.4,6.08745]
[1722379045132,0.07318499,3285.5,3285.4,6.926325]
[1722379045299,1.91591525,3285.5,3285.4,6.926325]
[1722379045506,1.98910024,3285.5,3285.4,6.926325]
[1722379045903,1.91591525,3285.5,3285.4,6.926325]
[1722379046136,1.91591525,3285.6,3285.5,6.08734]
[1722379046303,1.91591525,3285.6,3285.5,6.7799615]
[1722379046727,2.23523446,3285.8,3285.6,3.04357]
[1722379047767,2.23558663,3285.8,3285.6,3.04357]
[1722379050062,2.23558663,3285.8,3285.7,3.04349]
[1722379051087,1.07,3285.9,3285.7,3.04349]
[1722379051223,2.23577977,3285.8,3285.7,3.04349]
[1722379051722,2.23577977,3285.8,3285.5,3.7362115]
[1722379051923,2.23577977,3285.8,3285.5,3.04359]
[1722379052154,2.23577977,3285.8,3285.6,3.04357]
[1722379054358,2.23577977,3285.7,3285.6,3.04357]
[1722379054522,2.23640334,3285.8,3285.6,3.04357]
[1722379054951,2.23632129,3285.8,3285.6,3.04357]
[1722379055269,2.23632129,3285.7,3285.6,3.04357]
[1722379057218,2.23632129,3285.8,3285.7,3.04349]
[1722379057443,2.23659909,3285.8,3285.7,3.04349]
[1722379058962,2.23640434,3285.8,3285.7,3.04349]
[1722379059131,0.07327348,3285.8,3285.7,3.04349]
[1722379059337,2.30974839,3285.8,3285.7,3.04349]
[1722379061254,0.07327348,3285.8,3285.7,3.04349]
[1722379061560,2.30964308,3285.8,3285.7,3.04349]
[1722379061763,2.30962038,3285.8,3285.7,3.04349]
[1722379062356,0.07327348,3285.8,3285.7,3.04349]
[1722379063872,0.07327348,3285.8,3285.7,3.24349]
[1722379064233,3.71136363,3286.0,3285.7,3.24349]
[1722379064453,0.07324816,3285.8,3285.7,3.24349]
[1722379064661,3.71186698,3286.0,3285.8,3.04339]
[1722379066373,2.64186698,3286.1,3285.9,3.0433]
[1722379066691,2.64186698,3286.2,3286.0,3.04321]
[1722379067181,2.64186698,3286.1,3286.0,3.04321]
[1722379067693,3.71186698,3286.1,3285.9,3.04325]
[1722379067987,3.71174349,3286.1,3285.9,3.04325]
[1722379068370,3.71174349,3286.1,3285.7,0.4]
[1722379068371,2.64174349,3286.0,3285.7,0.4]
[1722379068554,1.07,3285.8,3285.7,0.4]
[1722379068760,3.71174349,3285.8,3285.7,0.4]
[1722379069151,1.07,3285.8,3285.7,0.4]
[1722379069550,3.71174349,3285.8,3285.7,0.4]
[1722379069750,1.07,3285.8,3285.7,0.4]
[1722379070301,2.64174349,3285.9,3285.7,0.4]
[1722379070302,3.71174349,3285.9,3285.7,3.44348]
[1722379070445,2.64174349,3285.8,3285.7,0.4]
[1722379070646,3.71174349,3285.9,3285.7,0.4]
[1722379070860,6.2045564,3286.2,3285.7,0.4]
[1722379070861,2.64174349,3285.8,3285.7,0.4]
[1722379071087,2.64244376,3285.9,3285.7,0.4]
[1722379071273,3.71244376,3286.0,3285.7,0.4]
[1722379071476,1.07,3286.0,3285.7,0.4]
[1722379071648,3.71269959,3286.0,3285.7,0.4]
[1722379071847,2.64269959,3286.0,3285.7,0.4]
[1722379072296,2.64269959,3286.0,3285.7,3.44348]
[1722379073490,2.64269613,3286.1,3285.8,3.04339]
[1722379073660,1.07,3286.0,3285.8,3.04339]
[1722379074285,0.07334361,3285.9,3285.8,3.04339]
[1722379074855,0.07334361,3285.9,3285.7,0.4]
[1722379074856,2.71607373,3285.9,3285.7,0.4]
[1722379075658,0.07334361,3285.9,3285.7,0.4]
[1722379075859,2.71607373,3285.9,3285.7,0.4]
[1722379076076,0.07334361,3285.9,3285.7,0.4]
[1722379076483,2.71607373,3285.9,3285.7,0.4]
[1722379076656,2.71607373,3285.9,3285.7,3.44348]
[1722379076856,0.07334361,3285.9,3285.7,3.44348]
[1722379077171,2.23748516,3285.8,3285.7,3.44348]
[1722379077469,1.07,3286.0,3285.8,3.04339]
[1722379077675,2.64307552,3286.1,3285.8,3.04339]
[1722379077852,3.71307552,3286.1,3285.8,3.04339]
[1722379078051,2.64307552,3286.0,3285.7,3.44349]
[1722379078251,2.64307552,3286.2,3285.9,5.481]
[1722379078448,2.64307552,3286.3,3286.1,3.04312]
[1722379079087,2.64307552,3286.3,3285.9,2.4377]
[1722379079305,2.64307552,3286.3,3286.1,3.04312]
[1722379079456,3.71307552,3286.3,3286.0,3.04314]
[1722379080013,2.64307552,3286.3,3286.1,3.04312]
[1722379080155,2.3242,3286.7,3286.0,0.548084]
[1722379080156,2.2371967,3286.4,3286.3,6.08586]
[1722379080357,1.59844249,3286.5,3286.4,9.12852]
[1722379080597,1.07,3287.5,3286.5,3.04275]
[1722379080899,1.07,3287.5,3287.0,3.04221]
[1722379080900,2.23783305,3287.1,3287.0,3.04221]
[1722379081297,2.23783305,3287.2,3287.1,3.04219]
[1722379081486,3.71344029,3287.5,3287.1,3.04219]
[1722379081487,2.23783305,3287.4,3287.1,3.04219]
[1722379082157,1.91403381,3287.2,3287.1,3.04219]
[1722379082995,4.11164,3287.7,3287.1,3.04219]
[1722379083298,1.91395923,3287.3,3287.1,3.04219]
[1722379083752,1.91395923,3287.3,3287.0,3.04221]
[1722379083753,1.91395923,3287.2,3287.0,3.04221]
[1722379083953,2.98395923,3287.1,3286.5,3.04273]
[1722379084199,1.91395923,3286.8,3286.5,3.04273]
[1722379084371,1.07,3286.7,3286.0,5.52857]
[1722379084577,1.59344958,3286.2,3286.1,3.04306]
[1722379085051,1.9121395,3286.5,3286.3,3.04292]
[1722379085256,1.9121395,3286.5,3286.2,3.04297]
[1722379085455,0.05875898,3286.4,3286.2,3.04297]
[1722379085905,0.05875898,3286.4,3286.3,3.04293]
[1722379086510,1.91202152,3286.6,3286.4,3.04284]
[1722379086712,1.07,3286.8,3286.4,3.04284]
[1722379086866,1.91189314,3286.6,3286.4,3.04284]
[1722379087266,1.91189314,3286.7,3286.4,3.04284]
[1722379087524,1.91189314,3286.7,3286.5,3.04269]
[1722379088169,1.91189314,3286.8,3286.5,3.04269]
[1722379089289,0.05870006,3286.7,3286.5,3.04269]
[1722379089672,3.04223,3287.1,3286.5,3.04269]
[1722379089673,1.91143972,3286.8,3286.5,3.04269]
[1722379089872,0.05866572,3286.6,3286.4,3.04283]
[1722379090103,1.91143972,3286.6,3286.4,3.04283]
[1722379090413,0.05863139,3286.5,3286.4,3.04283]
[1722379090588,1.91143972,3286.7,3286.4,3.04283]
[1722379090784,1.97010544,3286.6,3286.3,3.0429]
[1722379090992,1.97010544,3286.6,3286.4,3.04281]
[1722379091989,3.04286,3286.4,3285.9,3.04328]
[1722379092329,1.97000243,3286.3,3285.9,3.04328]
[1722379092476,1.91143972,3286.2,3285.9,3.04328]
[1722379092815,0.05847432,3286.1,3285.9,3.04328]
[1722379093887,0.05847432,3286.1,3285.9,3.04323]
[1722379094092,0.05847432,3286.1,3286.0,3.04321]
[1722379094481,1.91099433,3286.3,3285.9,3.04323]
[1722379094677,1.59198137,3286.0,3285.9,3.04323]
[1722379094981,1.65038414,3286.0,3285.9,3.04323]
[1722379095180,0.05840277,3286.0,3285.9,3.04323]
[1722379095422,1.91099433,3286.3,3285.9,3.04323]
[1722379095725,0.05840277,3286.0,3285.9,3.04323]
[1722379095932,1.91099433,3286.3,3285.9,3.04323]
[1722379096238,3.04284,3286.4,3285.9,3.04323]
[1722379096405,1.96885806,3286.2,3285.7,5.81935]
[1722379096606,1.59199802,3285.8,3285.7,0.4]
[1722379096805,1.9103866,3285.8,3285.7,0.4]
[1722379097110,1.96865501,3285.8,3285.7,0.4]
[1722379097309,0.05826841,3285.8,3285.7,3.44349]
[1722379097987,1.9103866,3286.0,3285.7,3.04349]
[1722379098193,0.05823995,3285.8,3285.7,3.04349]
[1722379098492,1.9103866,3286.0,3285.7,3.04349]
[1722379098690,0.05823995,3285.8,3285.7,3.04349]
[1722379098947,1.9103866,3286.0,3285.7,3.04349]
[1722379099392,0.0582743,3285.9,3285.7,3.04349]
[1722379099594,1.96861326,3285.9,3285.8,3.04339]
[1722379099902,0.0582743,3285.9,3285.8,3.04339]
[1722379101727,1.9104821,3286.0,3285.8,3.04339]
[1722379101941,0.0582743,3285.9,3285.8,3.04339]
[1722379103643,0.0582743,3285.9,3285.7,2.3889]
[1722379103876,0.0582743,3285.9,3285.7,5.43238]
[1722379104022,1.96891908,3285.9,3285.7,5.43238]
[1722379105467,1.96907697,3285.9,3285.7,5.43238]
[1722379106365,0.0582743,3285.9,3285.7,5.63238]
[1722379107859,0.0582743,3285.9,3285.7,2.5889]
[1722379108017,1.96903412,3285.9,3285.7,2.5889]
[1722379108220,0.0582743,3285.9,3285.7,5.63237]
[1722379108448,4.95414982,3285.8,3285.7,0.2]
[1722379108656,3.04339,3285.8,3285.7,0.2]
[1722379108968,3.10153583,3285.8,3285.7,0.2]
[1722379109152,8.37414563,3285.8,3285.7,0.2]
[1722379109358,9.56744053,3285.8,3285.7,0.2]
[1722379109561,9.56692162,3285.8,3285.7,0.2]
[1722379110030,21.89955366,3285.8,3285.7,0.2]
[1722379110224,19.26690073,3285.8,3285.7,0.2]
[1722379110557,19.26690073,3285.8,3285.7,0.4]
[1722379111163,21.83590073,3285.8,3285.7,0.4]
[1722379114458,19.26690073,3285.8,3285.7,0.6]
[1722379114628,21.83590073,3285.8,3285.7,0.6]
[1722379115245,24.46369249,3285.8,3285.7,0.6]
[1722379115644,22.15313307,3285.8,3285.7,0.6]
[1722379116266,24.78042042,3285.8,3285.7,0.6]
[1722379116673,19.16803042,3285.8,3285.7,0.6]
[1722379116874,12.94735307,3285.8,3285.7,0.6]
[1722379117077,8.36913848,3285.8,3285.7,0.6]
[1722379117269,6.14492583,3285.8,3285.7,0.6]
[1722379117475,8.0513918,3285.8,3285.7,0.6]
[1722379117791,6.14492583,3285.8,3285.7,0.6]
[1722379117968,8.0513532,3285.8,3285.7,0.6]
[1722379118363,11.05126869,3285.8,3285.7,0.6]
[1722379119393,11.05120292,3285.8,3285.7,0.6]
[1722379122225,6.10153583,3285.8,3285.7,0.6]
[1722379126720,8.00750308,3285.8,3285.7,0.6]
[1722379126916,11.05089308,3285.8,3285.7,0.6]
[1722379127065,12.15597539,3285.8,3285.7,0.6]
[1722379127524,10.25000814,3285.8,3285.7,0.6]
[1722379127692,11.05150122,3285.8,3285.7,0.6]
[1722379127907,11.0514866,3285.8,3285.7,0.6]
[1722379128613,9.14492583,3285.8,3285.7,0.6]
[1722379128783,11.05211421,3285.8,3285.7,0.6]
[1722379129320,9.14492583,3285.8,3285.7,0.6]
[1722379131194,10.21492583,3285.8,3285.7,0.6]
[1722379131376,11.45900271,3285.8,3285.7,0.6]
[1722379132118,10.21492583,3285.8,3285.7,0.6]
[1722379132670,12.44159626,3285.8,3285.7,0.6]
[1722379133799,10.21492583,3285.8,3285.7,0.6]
[1722379134008,12.44189236,3285.8,3285.7,0.6]
[1722379134271,10.21492583,3285.8,3285.7,0.6]
[1722379134473,12.02946686,3285.8,3285.7,0.6]
[1722379134769,14.25687656,3285.8,3285.7,0.6]
[1722379134965,12.02946686,3285.8,3285.7,0.6]
[1722379137511,15.07285686,3285.8,3285.7,0.6]
[1722379139154,17.70399267,3285.8,3285.7,0.6]
[1722379139449,17.7045707,3285.8,3285.7,0.6]
[1722379141148,14.6611807,3285.8,3285.7,0.6]
[1722379141377,9.14492583,3285.8,3285.7,0.6]
[1722379141514,10.21492583,3285.8,3285.7,0.6]
[1722379142249,12.84707846,3285.8,3285.7,0.6]
[1722379142556,10.21492583,3285.8,3285.7,0.6]
[1722379143053,12.8475668,3285.8,3285.7,0.6]
[1722379143213,14.44190178,3285.8,3285.7,0.6]
[1722379143557,14.44190292,3285.8,3285.7,0.6]
[1722379143909,20.93189693,3285.8,3285.7,0.6]
[1722379144264,3.0446,3284.5,3284.4,2.2998]
[1722379144566,4.17196264,3284.5,3284.4,2.2998]
[1722379145218,3.037012,3284.5,3284.4,2.2998]
[1722379145569,0.05736264,3284.5,3284.4,2.2998]
[1722379145725,1.967012,3284.5,3284.4,2.2998]
[1722379145920,0.05736264,3284.5,3284.4,2.2998]
[1722379146326,1.967012,3284.5,3284.4,2.2998]
[1722379147557,0.05736264,3284.5,3284.4,2.2998]
[1722379149145,1.967012,3284.5,3284.4,2.2998]
[1722379149839,3.037012,3284.5,3284.4,2.2998]
[1722379150761,4.17197264,3284.5,3284.1,2.3639]
[1722379151050,1.59097992,3284.2,3284.1,2.3639]
[1722379151483,1.64816851,3284.2,3284.1,2.3639]
[1722379151616,1.64836782,3284.2,3284.1,2.3639]
[1722379152521,1.64827439,3284.2,3284.1,2.3639]
[1722379153058,1.64826887,3284.2,3284.1,2.3639]
[1722379153224,0.05718859,3284.2,3284.1,2.3639]
[1722379153556,1.59123681,3284.2,3284.1,2.3639]
[1722379153732,0.05718859,3284.2,3284.1,2.3639]
[1722379153964,1.64841169,3284.2,3284.1,2.3639]
[1722379154165,1.5912231,3284.2,3284.1,2.3639]
[1722379154369,0.05718859,3284.2,3284.1,2.3639]
[1722379154675,1.59135693,3284.2,3284.1,2.90479]
[1722379154865,1.07,3284.5,3284.1,2.3639]
[1722379155182,1.59130975,3284.2,3284.1,2.3639]
[1722379155377,1.59134563,3284.2,3284.1,2.3639]
[1722379155586,1.64853422,3284.2,3284.1,2.90479]
[1722379155959,1.64853422,3284.2,3284.1,5.94976]
[1722379157200,1.6483568,3284.2,3284.1,5.94976]
[1722379157729,1.6483568,3284.2,3284.1,2.90479]
[1722379158055,0.05718859,3284.2,3284.1,2.90479]
[1722379158259,1.5910559,3284.2,3284.1,2.90479]
[1722379158495,1.64809333,3284.2,3284.1,2.90479]
[1722379161596,1.6477249,3284.2,3284.1,2.90479]
[1722379162685,0.05703743,3284.2,3284.1,2.90479]
[1722379162879,1.59068747,3284.2,3284.1,2.90479]
[1722379163084,1.59068747,3284.2,3283.7,2.3762]
[1722379163295,1.59047539,3284.1,3283.8,3.04523]
[1722379163485,1.59047539,3284.2,3283.8,3.04523]
[1722379163653,1.07,3284.1,3283.7,2.3762]
[1722379163857,1.59047539,3284.0,3283.7,5.42153]
[1722379164097,0.05693426,3283.9,3283.7,2.3762]
[1722379164306,0.05693426,3283.9,3283.7,2.918354]
[1722379164508,1.59047539,3284.0,3283.7,2.918354]
[1722379164679,0.05688282,3283.9,3283.8,3.04519]
[1722379165007,1.59024321,3284.0,3283.8,3.04519]
[1722379165606,0.05694555,3283.9,3283.8,3.04519]
[1722379165898,0.05694555,3283.9,3283.8,3.9460784]
[1722379166083,4.11479,3284.3,3283.8,3.9460784]
[1722379166258,0.05694555,3283.9,3283.8,3.9460784]
[1722379166485,4.11479,3284.3,3283.8,3.9460784]
[1722379166790,1.07,3284.3,3283.9,3.04511]
[1722379166960,0.05680638,3284.2,3283.9,0.99095424]
[1722379167469,4.11474,3284.4,3283.9,0.99095424]
[1722379167679,0.05686755,3284.1,3283.8,6.09038]
[1722379167876,3.04427,3284.9,3284.3,2.3145]
[1722379168186,3.0,3284.8,3284.3,2.37539096]
[1722379168495,3.04433,3284.8,3284.3,5.76471006]
[1722379168703,1.07,3284.9,3284.4,3.04463]
[1722379169202,1.07,3284.9,3284.5,3.04459]
[1722379169502,1.07,3284.9,3284.5,6.08909]
[1722379169687,1.07,3284.9,3284.5,3.04454]
[1722379169884,3.0,3285.1,3284.5,3.04454]
[1722379170075,4.07,3285.1,3284.7,3.0444]
[1722379170477,2.2993,3285.8,3284.8,2.4235]
[1722379170668,0.31858255,3286.3,3285.5,2.4235]
[1722379170669,1.07,3286.1,3285.5,2.4235]
[1722379170863,1.07,3286.1,3285.5,5.46717]
[1722379171094,3.04322,3286.0,3285.5,2.4235]
[1722379171303,3.454542,3286.0,3285.5,2.4235]
[1722379171519,1.07,3285.9,3285.5,2.4235]
[1722379171930,4.11331,3285.9,3285.5,2.4235]
[1722379172218,3.04342,3285.8,3285.5,2.4235]
[1722379172416,3.04342,3285.8,3285.3,3.04379]
[1722379173096,1.07,3285.8,3285.3,3.04377]
[1722379173296,3.04322,3286.0,3285.3,3.590947]
[1722379173605,3.04346,3285.8,3285.2,5.47187]
[1722379173776,3.04349,3285.7,3285.2,2.428]
[1722379174182,3.0436,3285.6,3285.2,2.428]
[1722379176612,0.304346,3285.7,3284.9,2.3354]
[1722379176831,3.04378,3285.4,3284.9,2.3354]
[1722379177228,6.08728,3285.6,3284.9,5.37962]
[1722379177430,3.04362,3285.6,3284.9,2.3354]
[1722379177610,3.04362,3285.6,3284.9,2.873368]
[1722379177963,3.04362,3285.6,3285.0,3.04406]
[1722379179040,3.04344,3285.8,3285.1,3.04399]
[1722379179242,0.05354181,3285.5,3285.4,3.04376]
[1722379179413,10.39,3285.9,3285.4,3.04376]
[1722379179620,0.05351991,3285.5,3285.4,3.04376]
[1722379179814,10.39,3285.9,3285.4,3.04376]
[1722379180017,0.05351991,3285.5,3285.4,3.04376]
[1722379180218,10.39,3285.9,3285.4,3.04376]
[1722379180418,0.05165868,3285.5,3285.4,3.04376]
[1722379180629,10.39,3285.9,3285.4,3.04376]
[1722379180827,0.05165868,3285.5,3285.4,3.04376]
[1722379181005,10.39,3285.9,3285.4,3.04376]
[1722379181233,0.05165868,3285.5,3285.4,3.04376]
[1722379181429,10.39,3285.9,3285.4,6.08746]
[1722379181632,0.05162878,3285.5,3285.4,3.0437]
[1722379181806,10.39,3285.9,3285.4,3.0437]
[1722379182009,0.0515555,3285.5,3285.4,3.0437]
[1722379182325,10.39,3285.9,3285.5,3.04367]
[1722379183055,10.39,3285.9,3285.4,3.04376]
[1722379183235,10.39,3285.9,3285.3,2.3354]
[1722379183547,10.39,3285.9,3285.3,5.37925]
[1722379183760,13.43332,3285.9,3285.3,5.37925]
[1722379184756,13.43332,3285.9,3285.4,3.04376]
[1722379186531,6.04332,3285.9,3285.3,2.3354]
[1722379186861,3.0435,3285.7,3285.3,2.3354]
[1722379190454,3.0434,3285.8,3285.3,2.3354]
[1722379190956,3.0434,3285.8,3285.3,5.37925]
[1722379191134,6.08688,3285.8,3285.3,2.3354]
[1722379191336,4.0125212,3285.8,3285.6,0.2]
[1722379191773,7.0559912,3285.8,3285.6,0.2]
[1722379192386,1.906803,3285.7,3285.6,0.2]
[1722379192788,5.9193242,3285.8,3285.6,0.2]
[1722379193646,1.906803,3285.9,3285.6,0.2]
[1722379193848,4.950153,3285.9,3285.6,0.2]
[1722379194260,0.05078902,3285.8,3285.6,0.2]
[1722379194647,1.58889775,3285.7,3285.6,0.2]
[1722379194863,1.58875357,3285.7,3285.6,0.2]
[1722379195043,1.63950823,3285.7,3285.6,0.2]
[1722379195491,1.63950823,3285.7,3285.6,0.4]
[1722379198582,1.63924067,3285.7,3285.6,0.4]
[1722379198787,1.63924067,3285.7,3285.6,3.44358]
[1722379199717,1.63924067,3285.7,3285.6,3.64358]
[1722379199921,0.05075466,3285.7,3285.6,3.64358]
[1722379200215,1.58848601,3285.8,3285.7,3.04349]
[1722379201023,1.58861706,3285.9,3285.8,3.04337]
[1722379201188,1.58861706,3285.9,3285.8,6.08676]
[1722379201525,1.58861706,3286.2,3286.1,3.04312]
[1722379201691,7.39,3286.3,3286.1,3.04312]
[1722379201892,8.97849851,3286.3,3286.1,3.04312]
[1722379202204,8.97849851,3286.3,3286.2,2.3106]
[1722379202528,8.46,3286.3,3285.9,5.49129]
[1722379202706,4.63148156,3286.2,3285.9,2.448]
[1722379203017,1.58840156,3286.1,3285.9,2.448]
[1722379203512,1.58840156,3286.0,3285.9,2.448]
[1722379203815,1.58840156,3286.1,3285.9,2.448]
[1722379204001,1.58840156,3286.0,3285.6,0.6]
[1722379204321,1.07,3285.7,3285.6,0.6]
[1722379205794,2.6584685,3285.7,3285.6,0.6]
[1722379207212,4.11349,3285.7,3285.6,0.6]
[1722379208838,6.02160239,3285.7,3285.6,0.6]
[1722379209200,6.07025579,3285.7,3285.6,0.6]
[1722379209602,6.07107189,3285.7,3285.6,0.6]
[1722379209903,5.07358059,3285.7,3285.6,0.6]
[1722379210103,3.9390792,3285.7,3285.6,0.6]
[1722379210438,4.1621434,3285.7,3285.6,0.6]
[1722379212252,7.2056334,3285.7,3285.6,0.6]
[1722379212400,10.2491234,3285.7,3285.6,0.6]
[1722379212601,13.2491234,3285.7,3285.6,0.6]
[1722379212801,20.46684875,3285.7,3285.6,0.6]
[1722379213018,14.26998329,3285.7,3285.6,0.6]
[1722379215627,17.31347329,3285.7,3285.6,0.6]
[1722379216014,14.26998329,3285.7,3285.6,0.6]
[1722379216214,17.31347329,3285.7,3285.6,0.6]
[1722379216540,14.26998329,3285.7,3285.6,0.6]
[1722379217159,17.31347329,3285.7,3285.6,0.6]
[1722379217464,14.26998329,3285.7,3285.6,0.6]
[1722379218118,11.84588329,3285.7,3285.6,0.6]
[1722379220245,14.47859765,3285.7,3285.6,0.6]
[1722379221956,14.47841872,3285.7,3285.6,0.6]
[1722379225402,11.84588329,3285.7,3285.6,0.6]
[1722379227851,14.47611246,3285.7,3285.6,0.6]
[1722379228734,14.47612769,3285.7,3285.6,0.6]
[1722379228983,11.84588329,3285.7,3285.6,0.6]
[1722379230311,0.0486534,3285.7,3285.6,0.6]
[1722379230666,3.29693439,3285.9,3285.6,0.6]
[1722379230872,1.95502847,3285.7,3285.6,0.6]
[1722379231065,1.90879907,3285.7,3285.6,0.6]
[1722379231265,1.95502847,3285.7,3285.6,0.6]
[1722379231592,1.95502847,3285.7,3285.6,3.0444]
[1722379231769,1.98651562,3285.7,3285.6,3.0444]
[1722379231951,1.98647,3285.7,3285.6,3.0444]
[1722379232152,0.07771655,3285.7,3285.6,3.0444]
[1722379232380,4.11337,3285.9,3285.6,3.0444]
[1722379232576,0.07772969,3285.7,3285.6,3.0444]
[1722379232859,6.34022239,3285.9,3285.6,3.0444]
[1722379233062,0.07772969,3285.7,3285.6,3.0444]
[1722379233282,1.90866594,3285.8,3285.6,6.0879]
[1722379233659,0.07776912,3285.7,3285.6,6.0879]
[1722379234060,1.90866594,3285.8,3285.6,6.0879]
[1722379234305,0.07776912,3285.7,3285.6,6.0879]
[1722379234659,1.90860037,3285.8,3285.6,6.0879]
[1722379235176,0.07776912,3285.7,3285.6,6.0879]
[1722379235376,1.90855765,3285.8,3285.6,6.0879]
[1722379235561,0.07776912,3285.7,3285.6,6.0879]
[1722379235775,1.90855765,3285.8,3285.6,6.0879]
[1722379235979,0.07776912,3285.7,3285.6,6.0879]
[1722379236500,1.90841442,3285.8,3285.6,6.0879]
[1722379236799,0.07776912,3285.7,3285.6,6.0879]
[1722379237161,1.90841442,3285.8,3285.6,6.0879]
[1722379237356,0.07776912,3285.7,3285.6,6.0879]
[1722379237782,1.90841442,3285.9,3285.6,5.4879]
[1722379237997,1.90841442,3285.9,3285.8,0.2]
[1722379238693,4.11313,3286.1,3285.8,0.2]
[1722379239006,1.90841935,3285.9,3285.8,0.2]
[1722379239369,1.98625527,3285.9,3285.8,0.2]
[1722379241599,4.19113592,3285.9,3285.8,0.2]
[1722379241814,8.18052044,3285.9,3285.8,0.2]
[1722379242110,10.40676005,3285.9,3285.8,0.4]
[1722379242317,8.18052044,3285.9,3285.8,0.4]
[1722379242514,10.40695759,3285.9,3285.8,0.4]
[1722379242682,10.40701421,3285.9,3285.8,0.4]
[1722379243176,8.18052044,3285.9,3285.8,0.4]
[1722379245964,8.18052044,3285.9,3285.8,0.6]
[1722379247316,7.3642561,3285.9,3285.8,0.6]
[1722379247517,4.19113592,3285.9,3285.8,0.6]
[1722379247817,6.41842287,3285.9,3285.8,0.6]
[1722379248734,4.19113592,3285.9,3285.8,0.6]
[1722379248884,6.41894694,3285.9,3285.8,0.6]
[1722379249478,4.19113592,3285.9,3285.8,0.6]
[1722379250322,4.19113592,3285.9,3285.8,0.8]
[1722379251029,6.41930014,3285.9,3285.8,0.8]
[1722379251933,3.37600014,3285.9,3285.8,0.8]
[1722379252139,1.14783592,3285.9,3285.8,3.2171]
[1722379252291,3.37617366,3285.9,3285.8,3.2171]
[1722379252833,1.14783592,3285.9,3285.8,3.2171]
[1722379253784,0.07783592,3285.9,3285.8,3.2171]
[1722379253988,2.22833774,3286.1,3285.8,3.53881]
[1722379254241,1.98780842,3286.0,3285.8,6.7822]
[1722379254440,0.07781223,3286.0,3285.8,6.7822]
[1722379254641,1.98780842,3286.0,3285.8,6.7822]
[1722379255388,0.07781223,3286.0,3285.8,6.7822]
[1722379255633,1.90982935,3286.0,3285.8,6.7822]
[1722379255835,0.07789069,3285.9,3285.8,6.7822]
[1722379256891,1.90982935,3286.1,3285.8,6.7822]
[1722379257101,4.07,3286.3,3285.8,6.7822]
[1722379257102,0.07789069,3285.9,3285.8,6.7822]
[1722379257330,1.90982935,3286.0,3285.8,6.7822]
[1722379257633,0.07789069,3285.9,3285.8,6.7822]
[1722379258002,1.90982935,3286.1,3285.9,3.04329]
[1722379258204,1.90982935,3286.2,3286.0,3.04321]
[1722379258533,1.90982935,3286.2,3286.1,2.4047]